[Event "26th Abu Dhabi Master 2019"]
[Site "Abu Dhabi"]
[Date "2019.08.02"]
[Round "1.45"]
[White "Sindarov, Javokhir"]
[Black "Tabada, Jobannie C."]
[Result "1-0"]
[ECO "B81"]
[WhiteElo "2479"]
[BlackElo "2216"]
[Annotator "ChessBase"]
[PlyCount "51"]
[EventDate "2019.08.02"]
[EventType "swiss"]
[EventCountry "UAE"]
[SourceTitle "playchess.com"]
[Source "ChessBase"]
[SourceQuality "1"]
[TimeControl "5400+30"]

1. e4 {[%emt 0:00:00]} c5 {[%emt 0:00:28]} 2. Nf3 {[%emt 0:00:00]} d6 {[%emt 0:00:17]} 3. d4 {[%emt 0:00:00]} cxd4 {[%emt 0:00:02]} 4. Nxd4 {[%emt 0:00:00]} Nf6 {[%emt 0:00:03]} 5. Nc3 {[%emt 0:00:00]} e6 {[%emt 0:00:27]} 6. g4 {[%emt 0:02:40]} h6 {[%emt 0:00:03]} 7. h4 {[%emt 0:04:23]} Nc6 {[%emt 0:01:09]} 8. Rg1 {[%emt 0:05:35]} h5 {[%emt 0:00:04]} 9. gxh5 {[%emt 0:03:09]} Rxh5 {[%emt 0:06:38]} 10. Bg5 {[%emt 0:00:15]} Rh7 {[%emt 0:06:14]} 11. Qd2 {[%emt 0:11:52]} a6 {[%emt 0:07:23]} 12. O-O-O {[%emt 0:01:23]} Bd7 {[%emt 0:07:28]} 13. f4 {[%emt 0:04:42]} Be7 {[%emt 0:11:12]} 14. Nf3 {[%emt 0:04:35]} Nh5 {[%emt 0:34:33]} 15. e5 {[%emt 0:02:28]} d5 {[%emt 0:03:11]} 16. f5 {[%emt 0:00:15]} Qa5 {[%emt 0:00:38]} 17. fxe6 {[%emt 0:06:38]} Bxe6 {[%emt 0:06:46]} 18. Bxe7 {[%emt 0:00:05]} Nxe7 {[%emt 0:04:05]} 19. Ng5 {[%emt 0:03:42]} Rh6 {[%emt 0:03:06]} 20. Nxe6 {[%emt 0:00:52]} Rxe6 {[%emt 0:00:02]} 21. Qg5 {[%emt 0:01:11]} d4 {[%emt 0:00:42]} 22. Qxh5 {[%emt 0:01:03]} Rh6 {[%emt 0:00:12]} 23. Qf3 {[%emt 0:03:22]} dxc3 {[%emt 0:00:47]} 24. Bc4 {[%emt 0:00:09]} f5 {[%emt 0:02:50]} 25. Rxg7 {[%emt 0:01:02]} Qxe5 {[%emt 0:01:24]} 26. Qxb7 {[%emt 0:00:30]} 1-0

[Event "26th Abu Dhabi Master 2019"]
[Site "Abu Dhabi"]
[Date "2019.08.02"]
[Round "1.46"]
[White "Ajay Karthikeyan"]
[Black "Vasquez Schroeder, Rodrigo"]
[Result "0-1"]
[ECO "A45"]
[WhiteElo "2216"]
[BlackElo "2496"]
[Annotator "ChessBase"]
[PlyCount "138"]
[EventDate "2019.08.02"]
[EventType "swiss"]
[EventCountry "UAE"]
[SourceTitle "playchess.com"]
[Source "ChessBase"]
[SourceQuality "1"]
[TimeControl "5400+30"]

1. d4 {[%emt 0:00:00]} Nf6 {[%emt 0:00:13]} 2. Bf4 {[%emt 0:00:00]} d6 {[%emt 0:00:09]} 3. Nc3 {[%emt 0:00:51]} Nbd7 {[%emt 0:00:16]} 4. Nf3 {[%emt 0:00:02]} c5 {[%emt 0:00:21]} 5. d5 {[%emt 0:03:41]} b5 {[%emt 0:01:03]} 6. Nxb5 {[%emt 0:05:36]} Qa5+ {[%emt 0:01:03]} 7. Nc3 {[%emt 0:00:07]} Rb8 {[%emt 0:00:05]} 8. Bd2 {[%emt 0:07:40]} Rxb2 {[%emt 0:00:20]} 9. e4 {[%emt 0:00:47]} Rb8 {[%emt 0:08:55]} 10. Bd3 {[%emt 0:07:37]} g6 {[%emt 0:06:35]} 11. Nb5 {[%emt 0:07:23]} Qb6 {[%emt 0:01:11]} 12. a4 {[%emt 0:01:39]} a6 {[%emt 0:06:00]} 13. a5 {[%emt 0:00:25]} Qb7 {[%emt 0:00:57]} 14. Na3 {[%emt 0:01:08]} Bg7 {[%emt 0:00:56]} 15. Rb1 {[%emt 0:14:47]} Qc7 {[%emt 0:00:39]} 16. Rxb8 {[%emt 0:00:09]} Nxb8 {[%emt 0:06:49]} 17. Bc3 {[%emt 0:08:33]} Bg4 {[%emt 0:05:00]} 18. O-O {[%emt 0:02:45]} O-O {[%emt 0:01:00]} 19. h3 {[%emt 0:01:34]} Bxf3 {[%emt 0:03:55]} 20. Qxf3 {[%emt 0:00:03]} Nfd7 {[%emt 0:16:40]} 21. Bxg7 {[%emt 0:00:13]} Kxg7 {[%emt 0:00:06]} 22. Nc4 {[%emt 0:00:38]} Nf6 {[%emt 0:02:48]} 23. Rb1 {[%emt 0:09:55]} Nbd7 {[%emt 0:02:41]} 24. Nb6 {[%emt 0:02:56]} Rb8 {[%emt 0:00:31]} 25. Bxa6 {[%emt 0:04:58]} Nxb6 {[%emt 0:01:04]} 26. axb6 {[%emt 0:00:23]} Rxb6 {[%emt 0:00:06]} 27. Rxb6 {[%emt 0:00:40]} Qxb6 {[%emt 0:00:04]} 28. Qe2 {[%emt 0:01:54]} Qb2 {[%emt 0:01:54]} 29. g3 {[%emt 0:06:42]} Qd4 {[%emt 0:04:46]} 30. Bd3 {[%emt 0:01:25]} h5 {[%emt 0:02:07]} 31. Kg2 {[%emt 0:02:32]} Kf8 {[%emt 0:01:33]} 32. f3 {[%emt 0:04:44]} Qc3 {[%emt 0:06:04]} 33. h4 {[%emt 0:03:14]} Nd7 {[%emt 0:00:27]} 34. Qd1 {[%emt 0:01:03]} Ne5 {[%emt 0:01:15]} 35. Bf1 {[%emt 0:00:13]} Qe3 {[%emt 0:01:26]} 36. Qe2 {[%emt 0:00:09]} Qc3 {[%emt 0:02:16]} 37. Kf2 {[%emt 0:00:42]} c4 {[%emt 0:02:25]} 38. Bh3 {[%emt 0:01:04]} Qd4+ {[%emt 0:01:03]} 39. Qe3 {[%emt 0:00:01]} Qb2 {[%emt 0:00:51]} 40. Qe2 {[%emt 0:01:08]} Qc3 {[%emt 0:06:46]} 41. f4 {[%emt 0:00:33]} Ng4+ {[%emt 0:00:24]} 42. Bxg4 {[%emt 0:00:02]} hxg4 {[%emt 0:00:07]} 43. Kg2 {[%emt 0:00:57]} Qd4 {[%emt 0:00:28]} 44. Qe1 {[%emt 0:00:33]} f5 {[%emt 0:02:10]} 45. c3 {[%emt 0:00:28]} Qd3 {[%emt 0:01:11]} 46. exf5 {[%emt 0:00:02]} Qxd5+ {[%emt 0:00:28]} 47. Kh2 {[%emt 0:00:56]} gxf5 {[%emt 0:01:03]} 48. Qe2 {[%emt 0:00:33]} Kf7 {[%emt 0:00:45]} 49. Kg1 {[%emt 0:00:12]} Qe6 {[%emt 0:02:21]} 50. Qf2 {[%emt 0:00:51]} Qe4 {[%emt 0:00:05]} 51. Qd2 {[%emt 0:00:17]} Kf6 {[%emt 0:00:45]} 52. Qf2 {[%emt 0:00:39]} Qd3 {[%emt 0:01:35]} 53. Qe1 {[%emt 0:00:06]} e5 {[%emt 0:00:15]} 54. fxe5+ {[%emt 0:00:06]} dxe5 {[%emt 0:00:01]} 55. Qf2 {[%emt 0:00:30]} Kg6 {[%emt 0:00:31]} 56. Qb6+ {[%emt 0:00:59]} Kh5 {[%emt 0:00:12]} 57. Qf2 {[%emt 0:00:49]} Qf3 {[%emt 0:01:23]} 58. Qe1 {[%emt 0:00:01]} e4 {[%emt 0:00:26]} 59. Kh2 {[%emt 0:00:29]} f4 {[%emt 0:00:58]} 60. gxf4 {[%emt 0:00:24]} Qxf4+ {[%emt 0:00:12]} 61. Kg2 {[%emt 0:00:27]} Qf3+ {[%emt 0:00:39]} 62. Kg1 {[%emt 0:00:03]} e3 63. Qb1 {[%emt 0:00:54]} Qf2+ {[%emt 0:01:03]} 64. Kh1 {[%emt 0:00:05]} Qxh4+ {[%emt 0:00:38]} 65. Kg2 {[%emt 0:00:03]} Qf2+ {[%emt 0:00:37]} 66. Kh1 {[%emt 0:00:01]} Qf7 {[%emt 0:00:23]} 67. Qb5+ {[%emt 0:00:28]} Kh4 {[%emt 0:00:12]} 68. Qc5 {[%emt 0:01:43]} Qf1+ {[%emt 0:01:07]} 69. Kh2 {[%emt 0:00:05]} g3# {[%emt 0:00:10]} 0-1

[Event "26th Abu Dhabi Master 2019"]
[Site "Abu Dhabi"]
[Date "2019.08.02"]
[Round "1.47"]
[White "Sadhwani, Raunak"]
[Black "Eynullayev, Altay"]
[Result "1-0"]
[ECO "B90"]
[WhiteElo "2477"]
[BlackElo "2188"]
[Annotator "ChessBase"]
[PlyCount "85"]
[EventDate "2019.08.02"]
[EventType "swiss"]
[EventCountry "UAE"]
[SourceTitle "playchess.com"]
[Source "ChessBase"]
[SourceQuality "1"]
[TimeControl "5400+30"]

1. e4 {[%emt 0:00:00]} c5 {[%emt 0:00:29]} 2. Nf3 {[%emt 0:00:00]} d6 {[%emt 0:00:06]} 3. d4 {[%emt 0:00:00]} cxd4 {[%emt 0:00:10]} 4. Nxd4 {[%emt 0:00:00]} Nf6 {[%emt 0:00:11]} 5. Nc3 {[%emt 0:00:00]} a6 {[%emt 0:00:05]} 6. h4 {[%emt 0:00:00]} e5 {[%emt 0:01:23]} 7. Nb3 {[%emt 0:00:08]} Be7 {[%emt 0:00:43]} 8. Bg5 {[%emt 0:00:06]} Be6 {[%emt 0:01:12]} 9. Bxf6 {[%emt 0:00:08]} Bxf6 {[%emt 0:00:06]} 10. g3 {[%emt 0:00:04]} O-O {[%emt 0:07:06]} 11. Qd2 {[%emt 0:00:18]} Be7 {[%emt 0:08:24]} 12. O-O-O {[%emt 0:00:13]} Nd7 {[%emt 0:01:18]} 13. f4 {[%emt 0:00:17]} b5 {[%emt 0:08:20]} 14. f5 {[%emt 0:00:13]} Bxb3 {[%emt 0:02:45]} 15. cxb3 {[%emt 0:05:10]} Nf6 {[%emt 0:01:35]} 16. Qe3 {[%emt 0:03:43]} Rc8 {[%emt 0:08:01]} 17. Kb1 {[%emt 0:00:09]} Qc7 {[%emt 0:01:18]} 18. Bd3 {[%emt 0:03:51]} Rfe8 {[%emt 0:05:41]} 19. Qf3 {[%emt 0:11:09]} h6 {[%emt 0:19:30]} 20. g4 {[%emt 0:00:36]} b4 {[%emt 0:00:23]} 21. Na4 {[%emt 0:06:18]} d5 {[%emt 0:19:39]} 22. exd5 {[%emt 0:00:08]} Qd6 {[%emt 0:08:46]} 23. Be4 {[%emt 0:02:24]} Red8 {[%emt 0:01:04]} 24. Bc2 {[%emt 0:04:59]} Qc7 {[%emt 0:01:30]} 25. Rc1 {[%emt 0:01:11]} Qd6 {[%emt 0:00:55]} 26. g5 {[%emt 0:00:52]} Qxd5 {[%emt 0:00:43]} 27. Qe2 {[%emt 0:00:02]} Nd7 {[%emt 0:01:09]} 28. f6 {[%emt 0:00:01]} gxf6 {[%emt 0:00:35]} 29. gxh6 {[%emt 0:00:06]} Kh8 {[%emt 0:00:30]} 30. Qg4 {[%emt 0:03:32]} Rg8 {[%emt 0:00:15]} 31. Qf5 {[%emt 0:00:07]} Rxc2 {[%emt 0:00:41]} 32. Qxc2 {[%emt 0:00:03]} Rg2 {[%emt 0:00:39]} 33. Rhd1 {[%emt 0:04:08]} Rxc2 {[%emt 0:00:39]} 34. Rxd5 {[%emt 0:00:01]} Rxc1+ {[%emt 0:00:07]} 35. Kxc1 {[%emt 0:00:09]} Nf8 {[%emt 0:00:02]} 36. Nc5 {[%emt 0:00:07]} a5 {[%emt 0:01:25]} 37. Ne4 {[%emt 0:00:51]} Kh7 {[%emt 0:00:27]} 38. Ng3 {[%emt 0:00:06]} Ne6 {[%emt 0:00:28]} 39. Rd7 {[%emt 0:00:53]} Bf8 {[%emt 0:00:32]} 40. Rxf7+ {[%emt 0:00:09]} Kg6 {[%emt 0:00:02]} 41. h7 {[%emt 0:00:29]} Bg7 {[%emt 0:00:03]} 42. Re7 {[%emt 0:00:20]} Nf4 {[%emt 0:00:37]} 43. h5+ {[%emt 0:00:12]} 1-0

[Event "26th Abu Dhabi Master 2019"]
[Site "Abu Dhabi"]
[Date "2019.08.02"]
[Round "1.49"]
[White "Tahbaz, Arash"]
[Black "Priyanka, K."]
[Result "1-0"]
[ECO "B55"]
[WhiteElo "2461"]
[BlackElo "2201"]
[Annotator "ChessBase"]
[PlyCount "101"]
[EventDate "2019.08.02"]
[EventType "swiss"]
[EventCountry "UAE"]
[SourceTitle "playchess.com"]
[Source "ChessBase"]
[SourceQuality "1"]
[TimeControl "5400+30"]

1. e4 c5 2. Nf3 d6 3. d4 cxd4 4. Nxd4 Nf6 5. f3 e5 6. Bb5+ Bd7 7. Bxd7+ Qxd7 8. Nf5 d5 9. Bg5 dxe4 10. Bxf6 Qxd1+ 11. Kxd1 gxf6 12. fxe4 Na6 13. Ke2 Rg8 14. g3 Nb4 15. Na3 O-O-O 16. c3 Nd3 17. Nc4 Nc5 18. Kf3 Nxe4 19. Rad1 Ng5+ 20. Ke2 Rxd1 21. Rxd1 Ne4 22. Kf3 Ng5+ 23. Ke2 Ne4 24. Ke3 Ng5 25. h4 Ne6 26. Kf3 Kc7 27. Nce3 Rg6 28. Nd5+ Kb8 29. h5 Rg5 30. g4 e4+ 31. Kg3 Ng7 32. Nxg7 Bxg7 33. Ne3 Kc7 34. Nf5 Bf8 35. Rd4 e3 36. Kf3 b5 37. b4 a5 38. a3 axb4 39. axb4 Rxf5+ 40. gxf5 Bh6 41. Rd5 Kc6 42. Rc5+ Kb6 43. Rc8 Bg5 44. Rf8 h6 45. Rxf7 Kc6 46. Re7 Kd6 47. Rb7 Kc6 48. Rb8 Kd5 49. Rc8 Bh4 50. Rc5+ Kd6 51. Rxb5 {Kd5 Ke4+} 1-0

[Event "26th Abu Dhabi Master 2019"]
[Site "Abu Dhabi"]
[Date "2019.08.02"]
[Round "1.50"]
[White "Adnan, Habib Hana"]
[Black "Venkatesh, M.R."]
[Result "0-1"]
[ECO "E61"]
[WhiteElo "2220"]
[BlackElo "2480"]
[Annotator "ChessBase"]
[PlyCount "96"]
[EventDate "2019.08.02"]
[EventType "swiss"]
[EventCountry "UAE"]
[SourceTitle "playchess.com"]
[Source "ChessBase"]
[SourceQuality "1"]
[TimeControl "5400+30"]

1. d4 {[%emt 0:00:08]} g6 {[%emt 0:02:32]} 2. c4 {[%emt 0:04:56]} Bg7 {[%emt 0:00:27]} 3. Nf3 {[%emt 0:01:02]} d6 {[%emt 0:00:56]} 4. Nc3 {[%emt 0:05:41]} Nf6 {[%emt 0:01:01]} 5. Bg5 {[%emt 0:01:02]} O-O {[%emt 0:02:35]} 6. e3 {[%emt 0:04:00]} c5 {[%emt 0:12:02]} 7. Be2 {[%emt 0:05:58]} Nc6 {[%emt 0:06:22]} 8. d5 {[%emt 0:12:18]} Na5 {[%emt 0:01:06]} 9. h3 {[%emt 0:12:20]} h6 {[%emt 0:04:06]} 10. Bf4 {[%emt 0:02:23]} a6 {[%emt 0:09:44]} 11. O-O {[%emt 0:07:36]} Bd7 {[%emt 0:02:31]} 12. e4 {[%emt 0:09:35]} b5 {[%emt 0:07:00]} 13. e5 {[%emt 0:07:33]} dxe5 {[%emt 0:04:04]} 14. Nxe5 {[%emt 0:02:50]} bxc4 {[%emt 0:01:07]} 15. Bf3 {[%emt 0:01:55]} Rc8 {[%emt 0:03:20]} 16. Qe2 {[%emt 0:02:55]} Qb6 {[%emt 0:07:31]} 17. Rad1 {[%emt 0:05:29]} Rcd8 {[%emt 0:03:33]} 18. Nxc4 {[%emt 0:02:29]} Nxc4 {[%emt 0:05:38]} 19. Qxc4 {[%emt 0:00:05]} Ne8 {[%emt 0:00:26]} 20. Ne4 {[%emt 0:04:52]} Bb5 {[%emt 0:06:50]} 21. Qb3 {[%emt 0:00:33]} Qa7 {[%emt 0:04:45]} 22. Rfe1 {[%emt 0:00:49]} Nd6 {[%emt 0:00:35]} 23. Nxd6 {[%emt 0:01:34]} exd6 {[%emt 0:00:03]} 24. a4 {[%emt 0:00:17]} Be8 {[%emt 0:00:06]} 25. Qc4 {[%emt 0:00:25]} g5 {[%emt 0:03:49]} 26. Bc1 {[%emt 0:02:54]} Rb8 {[%emt 0:00:32]} 27. b3 {[%emt 0:00:25]} Rb4 {[%emt 0:01:44]} 28. Qd3 {[%emt 0:00:35]} Qb7 {[%emt 0:04:16]} 29. Be2 {[%emt 0:01:02]} Rxb3 {[%emt 0:00:41]} 30. Qxa6 {[%emt 0:00:46]} Qxa6 {[%emt 0:00:26]} 31. Bxa6 Bxa4 {[%emt 0:00:08]} 32. Rd3 {[%emt 0:00:56]} Ra8 {[%emt 0:02:47]} 33. Bc4 {[%emt 0:00:30]} Rb4 {[%emt 0:01:17]} 34. Ba2 {[%emt 0:00:19]} Bb5 {[%emt 0:00:38]} 35. Ra3 {[%emt 0:00:13]} Rxa3 {[%emt 0:00:10]} 36. Bxa3 {[%emt 0:00:05]} Ra4 {[%emt 0:00:04]} 37. Re3 {[%emt 0:00:15]} c4 {[%emt 0:00:13]} 38. Bb1 {[%emt 0:00:28]} c3 {[%emt 0:00:14]} 39. Bxd6 {[%emt 0:01:45]} Ra1 {[%emt 0:00:08]} 40. Re1 {[%emt 0:00:14]} c2 {[%emt 0:00:16]} 41. Bxc2 {[%emt 0:00:28]} Rxe1+ {[%emt 0:00:07]} 42. Kh2 {[%emt 0:00:02]} Bc4 {[%emt 0:00:46]} 43. Bb4 {[%emt 0:00:21]} Be5+ {[%emt 0:00:06]} 44. f4 {[%emt 0:00:43]} Bxf4+ {[%emt 0:00:05]} 45. g3 {[%emt 0:00:16]} Re2+ {[%emt 0:00:04]} 46. Kg1 {[%emt 0:00:04]} Be3+ {[%emt 0:00:08]} 47. Kf1 {[%emt 0:00:17]} Rxc2+ {[%emt 0:00:05]} 48. Ke1 {[%emt 0:00:05]} Rc1# {[%emt 0:00:05]} 0-1

[Event "26th Abu Dhabi Master 2019"]
[Site "Abu Dhabi"]
[Date "2019.08.02"]
[Round "1.51"]
[White "Costachi, Mihnea"]
[Black "Soham Datar"]
[Result "1-0"]
[ECO "D15"]
[WhiteElo "2471"]
[BlackElo "2129"]
[Annotator "ChessBase"]
[PlyCount "195"]
[EventDate "2019.08.02"]
[EventType "swiss"]
[EventCountry "UAE"]
[SourceTitle "playchess.com"]
[Source "ChessBase"]
[SourceQuality "1"]
[TimeControl "5400+30"]

1. d4 d5 2. c4 c6 3. Nf3 Nf6 4. Nc3 dxc4 5. e4 b5 6. Be2 e6 7. O-O Bb7 8. b3 cxb3 9. e5 Nd5 10. Nxd5 cxd5 11. Bxb5+ Bc6 12. Qxb3 Bxb5 13. Qxb5+ Qd7 14. Rb1 Be7 15. Bd2 Qxb5 16. Rxb5 O-O 17. Rc1 Na6 18. Rc6 Nb8 19. Rc1 Na6 20. Rb7 Ba3 21. Rc6 Rab8 22. Rxa7 Rb1+ 23. Be1 Nb8 24. Rcc7 Bb4 25. Kf1 Bxe1 26. Nxe1 Rd1 27. Ra4 Rb1 28. Ra8 Rd1 29. Ra4 Rb1 30. f4 h6 31. Ra8 Rd1 32. Ra4 Rb1 33. Kf2 Rb6 34. Nd3 Nc6 35. Ke3 g5 36. fxg5 hxg5 37. Nc5 Nb8 38. Ra8 Rb2 39. Rb7 Rxb7 40. Nxb7 Nc6 41. Rxf8+ Kxf8 42. a4 f6 43. exf6 Kf7 44. a5 Kxf6 45. a6 e5 46. Nd8 exd4+ 47. Kd2 Na7 48. Kd3 Ke7 49. Nb7 Nc6 50. Kd2 Na7 51. Ke2 Kd7 52. Nc5+ Kd6 53. Nb3 Ke5 54. Kf3 Nc6 55. Kg4 d3 56. Kxg5 Ke4 57. h4 Ke3 58. h5 Na5 59. Nd2 Nc4 60. Nb3 Na5 61. Nxa5 d2 62. a7 d1=Q 63. a8=Q Kf2 64. Qf8+ Kxg2 65. Qb4 d4 66. Nb3 Kh3 67. Kh6 Qf3 68. Qxd4 Qxb3 69. Kg7 Qb7+ 70. Kg6 Qg2+ 71. Kf5 Qf3+ 72. Kg6 Qc6+ 73. Qf6 Qe8+ 74. Qf7 Qc6+ 75. Qf6 Qe8+ 76. Kh6 Kh2 77. Qf4+ Kh3 78. Qf5+ Kh4 79. Qf6+ Kh3 80. Kg5 Qg8+ 81. Qg6 Qd8+ 82. Kf4 Qd2+ 83. Kf5 Qd3+ 84. Kf6 Qd4+ 85. Kf7 Qd7+ 86. Kf8 Qd8+ 87. Kg7 Qd7+ 88. Qf7 Qd4+ 89. Qf6 Qd7+ 90. Qf7 Qd4+ 91. Kg6 Qd6+ 92. Kh7 Qd3+ 93. Kg8 Qd8+ 94. Kg7 Qd4+ 95. Qf6 Qg4+ 96. Kh6 Qg8 97. Qc3+ Kh4 98. Qe1+ 1-0

[Event "26th Abu Dhabi Master 2019"]
[Site "Abu Dhabi"]
[Date "2019.08.02"]
[Round "1.52"]
[White "Krzywda, Andrzej"]
[Black "Vignesh N R"]
[Result "0-1"]
[ECO "A45"]
[WhiteElo "2190"]
[BlackElo "2466"]
[Annotator "ChessBase"]
[PlyCount "80"]
[EventDate "2019.08.02"]
[EventType "swiss"]
[EventCountry "UAE"]
[SourceTitle "playchess.com"]
[Source "ChessBase"]
[SourceQuality "1"]
[TimeControl "5400+30"]

1. d4 Nf6 2. Bg5 g6 3. Bxf6 exf6 4. e3 d5 5. g3 h5 6. h4 Bd6 7. Bg2 c6 8. Ne2 O-O 9. O-O Nd7 10. b3 f5 11. c4 Nf6 12. Nbc3 Be6 13. Qd3 Re8 14. c5 Bc7 15. Nf4 Ne4 16. b4 g5 17. hxg5 Qxg5 18. b5 h4 19. gxh4 Qxh4 20. Nce2 Kh8 21. f3 Ng3 22. Nxg3 Qxg3 23. bxc6 bxc6 24. Qd2 Rg8 25. Rab1 Bxf4 26. exf4 Rg6 27. Rf2 Rag8 28. Qe3 Rh6 29. Rb8 Rxb8 30. Qe5+ Kh7 31. Qxb8 Rh4 32. Qxa7 Qh2+ 33. Kf1 Qxf4 34. Re2 Qh6 35. Qe7 Rxd4 36. Qd6 Rd1+ 37. Kf2 Qh4+ 38. Qg3 Qd4+ 39. Re3 Rd2+ 40. Kf1 Qxe3 0-1

[Event "26th Abu Dhabi Master 2019"]
[Site "Abu Dhabi"]
[Date "2019.08.02"]
[Round "1.53"]
[White "Shyaamnikhil P"]
[Black "Mrudul Dehankar"]
[Result "1/2-1/2"]
[ECO "C78"]
[WhiteElo "2456"]
[BlackElo "2074"]
[Annotator "ChessBase"]
[PlyCount "74"]
[EventDate "2019.08.02"]
[EventType "swiss"]
[EventCountry "UAE"]
[SourceTitle "playchess.com"]
[Source "ChessBase"]
[SourceQuality "1"]
[TimeControl "5400+30"]

1. e4 {[%emt 0:00:12]} e5 {[%emt 0:00:50]} 2. Nf3 {[%emt 0:00:34]} Nc6 {[%emt 0:00:08]} 3. Bb5 {[%emt 0:00:19]} a6 {[%emt 0:00:06]} 4. Ba4 {[%emt 0:00:43]} Nf6 {[%emt 0:00:07]} 5. O-O {[%emt 0:00:43]} b5 {[%emt 0:00:15]} 6. Bb3 {[%emt 0:00:06]} Bb7 {[%emt 0:00:07]} 7. d3 {[%emt 0:00:59]} Bc5 {[%emt 0:00:17]} 8. Nc3 {[%emt 0:01:44]} O-O {[%emt 0:00:13]} 9. Bg5 {[%emt 0:03:48]} h6 {[%emt 0:05:09]} 10. Bh4 {[%emt 0:01:28]} g5 {[%emt 0:11:33]} 11. Bg3 {[%emt 0:00:20]} d6 {[%emt 0:01:16]} 12. a4 {[%emt 0:01:55]} Na5 {[%emt 0:15:38]} 13. Ba2 {[%emt 0:03:28]} b4 {[%emt 0:05:13]} 14. Ne2 {[%emt 0:00:25]} Nh5 {[%emt 0:06:23]} 15. c3 {[%emt 0:00:43]} bxc3 {[%emt 0:03:47]} 16. bxc3 {[%emt 0:00:08]} Bb6 {[%emt 0:00:59]} 17. Nd2 {[%emt 0:01:28]} Nf4 {[%emt 0:03:57]} 18. Nc1 {[%emt 0:02:24]} Qf6 {[%emt 0:03:42]} 19. Kh1 {[%emt 0:04:27]} Rad8 {[%emt 0:06:14]} 20. Rb1 {[%emt 0:11:31]} Bc6 {[%emt 0:04:57]} 21. f3 {[%emt 0:09:01]} h5 {[%emt 0:04:14]} 22. Bf2 {[%emt 0:01:15]} Bxf2 {[%emt 0:02:46]} 23. Rxf2 {[%emt 0:00:06]} Nb7 {[%emt 0:00:10]} 24. Qf1 {[%emt 0:03:41]} Nc5 {[%emt 0:03:02]} 25. a5 {[%emt 0:03:09]} Rb8 {[%emt 0:06:23]} 26. g3 {[%emt 0:05:46]} Ng6 {[%emt 0:05:44]} 27. Bc4 {[%emt 0:02:36]} Rxb1 {[%emt 0:03:54]} 28. Nxb1 {[%emt 0:00:07]} Rb8 {[%emt 0:00:04]} 29. Na2 {[%emt 0:05:09]} Bb5 {[%emt 0:04:13]} 30. Na3 {[%emt 0:00:57]} Bxc4 {[%emt 0:01:20]} 31. Nxc4 {[%emt 0:00:11]} Rb3 {[%emt 0:01:40]} 32. Nb4 {[%emt 0:08:13]} Qe6 {[%emt 0:01:01]} 33. Rc2 {[%emt 0:01:56]} Kg7 {[%emt 0:00:34]} 34. Nd2 {[%emt 0:05:19]} Ra3 {[%emt 0:00:09]} 35. Nc4 {[%emt 0:00:06]} Rb3 {[%emt 0:00:04]} 36. Nd2 {[%emt 0:13:26]} Ra3 {[%emt 0:00:08]} 37. Nc4 {[%emt 0:00:04]} Rb3 {[%emt 0:00:07]} 1/2-1/2

[Event "26th Abu Dhabi Master 2019"]
[Site "Abu Dhabi"]
[Date "2019.08.02"]
[Round "1.54"]
[White "Al Hosani, Omran"]
[Black "Alavi, Sayed Javad"]
[Result "1/2-1/2"]
[ECO "E32"]
[WhiteElo "2135"]
[BlackElo "2454"]
[Annotator "ChessBase"]
[PlyCount "64"]
[EventDate "2019.08.02"]
[EventType "swiss"]
[EventCountry "UAE"]
[SourceTitle "playchess.com"]
[Source "ChessBase"]
[SourceQuality "1"]
[TimeControl "5400+30"]

1. d4 Nf6 2. c4 e6 3. Nc3 Bb4 4. Qc2 O-O 5. a3 Bxc3+ 6. Qxc3 b6 7. Bg5 Bb7 8. e3 d6 9. Nf3 Nbd7 10. Be2 Rc8 11. Qc2 c5 12. Rd1 Qe7 13. O-O cxd4 14. Nxd4 Ba6 15. Qa4 Nc5 16. Qb4 Rfd8 17. Nb5 Bxb5 18. Qxb5 Nce4 19. Bh4 Rc5 20. Qb3 g5 21. Bg3 d5 22. cxd5 Rdxd5 23. Rxd5 Rxd5 24. Rd1 Rxd1+ 25. Qxd1 Nxg3 26. hxg3 Qc5 27. Bd3 Kg7 28. Qc2 Qe5 29. Bf1 h5 30. Be2 g4 31. Bf1 Nd5 32. Bc4 Nf6 1/2-1/2

[Event "26th Abu Dhabi Master 2019"]
[Site "Abu Dhabi"]
[Date "2019.08.02"]
[Round "1.55"]
[White "Muradli, Mahammad"]
[Black "Mahalakshmi, M."]
[Result "0-1"]
[ECO "E15"]
[WhiteElo "2454"]
[BlackElo "2173"]
[Annotator "ChessBase"]
[PlyCount "68"]
[EventDate "2019.08.02"]
[EventType "swiss"]
[EventCountry "UAE"]
[SourceTitle "playchess.com"]
[Source "ChessBase"]
[SourceQuality "1"]
[TimeControl "5400+30"]

1. d4 {[%emt 0:00:19]} Nf6 {[%emt 0:00:47]} 2. c4 {[%emt 0:00:09]} e6 {[%emt 0:00:13]} 3. Nf3 {[%emt 0:00:06]} b6 {[%emt 0:00:04]} 4. g3 {[%emt 0:00:08]} Ba6 {[%emt 0:00:12]} 5. b3 {[%emt 0:00:15]} Bb7 {[%emt 0:00:08]} 6. Bg2 {[%emt 0:02:13]} Bb4+ {[%emt 0:00:03]} 7. Bd2 {[%emt 0:01:37]} c5 {[%emt 0:00:01]} 8. dxc5 {[%emt 0:13:30]} Bxc5 {[%emt 0:02:54]} 9. O-O {[%emt 0:02:53]} O-O {[%emt 0:01:38]} 10. Nc3 {[%emt 0:07:15]} d5 {[%emt 0:06:44]} 11. Ne5 {[%emt 0:05:36]} Bd4 {[%emt 0:05:48]} 12. Nd3 {[%emt 0:01:24]} Nc6 {[%emt 0:08:51]} 13. e3 {[%emt 0:11:21]} Bxc3 {[%emt 0:05:51]} 14. Bxc3 {[%emt 0:00:22]} dxc4 {[%emt 0:00:30]} 15. bxc4 {[%emt 0:00:21]} Qe7 {[%emt 0:01:47]} 16. Qa4 {[%emt 0:10:23]} Rac8 {[%emt 0:02:16]} 17. Rfd1 {[%emt 0:02:17]} Rfd8 {[%emt 0:06:21]} 18. Rd2 {[%emt 0:11:35]} Na5 {[%emt 0:10:00]} 19. Bxa5 {[%emt 0:01:56]} Bxg2 {[%emt 0:01:07]} 20. Kxg2 {[%emt 0:00:10]} bxa5 {[%emt 0:00:58]} 21. f3 {[%emt 0:01:37]} e5 {[%emt 0:13:26]} 22. e4 {[%emt 0:01:43]} h6 {[%emt 0:02:25]} 23. Rad1 {[%emt 0:02:31]} Qc7 {[%emt 0:03:19]} 24. Qb5 {[%emt 0:01:59]} Rd4 {[%emt 0:07:18]} 25. Nb2 {[%emt 0:06:34]} Rb8 {[%emt 0:02:11]} 26. Qa4 {[%emt 0:00:10]} Rb4 {[%emt 0:01:53]} 27. Qc2 {[%emt 0:00:22]} Qb7 {[%emt 0:02:11]} 28. c5 {[%emt 0:01:43]} Rxb2 {[%emt 0:01:28]} 29. Qxb2 {[%emt 0:00:52]} Qxb2 {[%emt 0:00:05]} 30. Rxb2 {[%emt 0:00:03]} Rxd1 {[%emt 0:00:05]} 31. c6 {[%emt 0:01:28]} Rc1 {[%emt 0:01:09]} 32. Rb8+ {[%emt 0:00:02]} Kh7 {[%emt 0:00:06]} 33. Rc8 {[%emt 0:00:05]} Rc2+ {[%emt 0:00:41]} 34. Kg1 {[%emt 0:00:06]} Rxa2 {[%emt 0:00:49]} 0-1

[Event "26th Abu Dhabi Master 2019"]
[Site "Abu Dhabi"]
[Date "2019.08.02"]
[Round "1.56"]
[White "Arjun C Krishnamachari"]
[Black "Gaponenko, Inna"]
[Result "0-1"]
[ECO "B06"]
[WhiteElo "2212"]
[BlackElo "2450"]
[Annotator "ChessBase"]
[PlyCount "120"]
[EventDate "2019.08.02"]
[EventType "swiss"]
[EventCountry "UAE"]
[SourceTitle "playchess.com"]
[Source "ChessBase"]
[SourceQuality "1"]
[TimeControl "5400+30"]

1. e4 g6 2. d4 d6 3. h3 Bg7 4. Nf3 Nd7 5. Bc4 e6 6. O-O a6 7. a4 b6 8. Re1 Bb7 9. Nc3 h6 10. Bf4 Ne7 11. Bg3 O-O 12. Qd2 Nf6 13. Rad1 Nh7 14. Qe3 Kh8 15. Nh2 d5 16. exd5 Nf5 17. Qf4 exd5 18. Bd3 Nxg3 19. Qxg3 c5 20. dxc5 bxc5 21. Be4 Nf6 22. Bxd5 Nxd5 23. Nxd5 Bxd5 24. c4 Bxb2 25. Rxd5 Qa5 26. Nf3 Bg7 27. Re7 Qxa4 28. Ne5 Kg8 29. Kh2 Rae8 30. Rc7 Rxe5 31. Rxe5 Bxe5 32. Qxe5 Qxc4 33. Rxc5 Qb4 34. Ra5 Qb6 35. f4 Rd8 36. Qa1 Rd6 37. Re5 Qd4 38. Qxd4 Rxd4 39. Re8+ Kg7 40. Ra8 Ra4 41. Kg3 Kf6 42. Ra7 h5 43. h4 Ra3+ 44. Kf2 Ke6 45. g3 a5 46. Kg2 Ra1 47. Kf2 a4 48. Kg2 a3 49. Kf2 Kd5 50. Kg2 Ke4 51. Rxf7 Rb1 52. Ra7 Rb2+ 53. Kh3 a2 54. Ra4+ Kf3 55. Ra3+ Kf2 56. Kh2 Kf1+ 57. Kh1 Ke1 58. Ra6 Kd1 59. Kg1 Kc1 60. Re6 Rd2 0-1